bitfinex/quotes_ETHUSD_20250803
["timestamp","ask_amount","ask_price","bid_price","bid_amount"]
[1754179202725,0.001,3399.1,3399.0,1.96369096]
[1754179203033,0.001,3399.1,3399.0,1.03989096]
[1754179203237,0.001,3399.1,3399.0,1.19227006]
[1754179204352,0.4855,3399.1,3399.0,1.19227006]
[1754179204503,0.9428,3399.1,3399.0,1.03989096]
[1754179205152,0.4855,3399.1,3399.0,1.03989096]
[1754179205621,0.9428,3399.1,3399.0,0.89269096]
[1754179207646,0.4855,3399.1,3399.0,0.89269096]
[1754179207848,0.001,3399.1,3399.0,0.89269096]
[1754179208460,0.4855,3399.1,3399.0,0.89269096]
[1754179208964,0.9428,3399.1,3399.0,0.89269096]
[1754179209161,0.9428,3399.1,3398.8,0.002]
[1754179209162,1.09,3399.1,3398.8,0.002]
[1754179209369,0.1472,3398.9,3398.4,0.002]
[1754179209678,0.1472,3398.5,3398.4,0.002]
[1754179210085,1.089,3398.5,3398.4,0.002]
[1754179210285,0.9428,3399.1,3398.4,0.95522561]
[1754179210474,0.9428,3399.1,3398.7,0.1472]
[1754179210983,0.9418,3399.0,3398.7,0.1472]
[1754179211148,0.1472,3398.8,3398.4,0.002]
[1754179211465,0.1472,3398.5,3398.4,0.002]
[1754179211988,0.6317,3398.5,3398.4,0.002]
[1754179212347,1.089,3398.5,3398.4,0.002]
[1754179213461,1.089,3398.5,3397.2,0.4819]
[1754179213761,0.4845,3398.5,3397.8,0.1472]
[1754179214060,0.1472,3398.3,3397.8,0.1472]
[1754179214279,0.1472,3398.3,3397.9,0.589283]
[1754179214482,0.1472,3398.3,3397.9,0.147383]
[1754179214704,0.9418,3398.2,3397.9,0.21840516]
[1754179214905,0.9418,3398.1,3397.9,0.21840516]
[1754179215193,1.089,3398.0,3397.4,0.88473]
[1754179215360,0.1472,3397.8,3397.4,0.88473]
[1754179215556,0.4573,3397.7,3397.4,0.88473]
[1754179215793,0.6045,3397.6,3397.2,0.1472]
[1754179216381,0.6045,3397.6,3397.3,0.4845]
[1754179216580,0.4845,3398.5,3397.3,0.4845]
[1754179216781,0.1472,3397.8,3397.3,0.6317]
[1754179216985,0.1472,3397.8,3397.3,1.0736]
[1754179218073,0.6045,3397.8,3397.3,0.6317]
[1754179218794,0.4573,3397.7,3397.3,0.6317]
[1754179218958,0.9418,3397.7,3397.3,0.4845]
[1754179219163,0.1472,3397.6,3397.2,0.22189858]
[1754179219376,0.1472,3397.6,3397.1,0.4845]
[1754179219704,0.6045,3397.6,3397.1,0.4845]
[1754179219904,0.9418,3398.1,3397.2,0.4419]
[1754179220070,0.1472,3397.7,3397.3,0.1472]
[1754179220592,0.6045,3397.7,3397.3,0.1472]
[1754179221001,0.6045,3397.7,3397.4,0.4845]
[1754179221505,0.1472,3397.7,3397.4,0.4845]
[1754179221897,0.9227,3398.8,3397.5,0.4419]
[1754179222095,0.9227,3398.8,3397.6,0.1472]
[1754179222096,0.1472,3398.3,3397.6,0.1472]
[1754179222406,0.1472,3398.3,3397.8,0.1472]
[1754179223057,0.4382,3398.2,3397.8,0.1472]
[1754179223602,0.1472,3398.3,3397.8,0.1472]
[1754179223909,0.5854,3398.1,3397.7,0.1472]
[1754179224092,0.4382,3398.0,3397.7,0.884702]
[1754179224698,0.6387,3398.1,3397.7,0.884702]
[1754179224899,1.0769,3398.1,3397.7,0.884702]
[1754179225934,0.1472,3398.1,3397.7,0.884702]
[1754179226228,0.1472,3398.1,3397.8,0.1496302]
[1754179226592,0.1472,3398.1,3397.9,0.4644]
[1754179226797,0.1472,3398.1,3398.0,0.4644]
[1754179227011,0.9297,3398.7,3398.0,0.4644]
[1754179227191,0.1472,3398.3,3398.0,0.4644]
[1754179227738,0.1472,3398.3,3397.8,0.7612302]
[1754179227933,0.1472,3398.3,3397.9,0.16459322]
[1754179228134,0.1472,3398.3,3397.9,0.62899322]
[1754179229142,0.1472,3398.3,3397.9,0.16459322]
[1754179229437,0.9297,3398.2,3397.8,0.1472]
[1754179229608,0.4915,3398.2,3397.8,0.1472]
[1754179229813,0.4382,3398.1,3397.8,0.1472]
[1754179230306,0.4915,3398.2,3397.8,0.1472]
[1754179230511,0.1472,3398.3,3397.9,0.4915]
[1754179230713,0.5854,3398.3,3397.9,0.4915]
[1754179231240,0.1472,3398.3,3397.9,0.4915]
[1754179232113,0.5854,3398.3,3397.9,0.4915]
[1754179232308,0.1472,3398.3,3397.9,0.4915]
[1754179232610,0.9297,3398.2,3396.1,0.55]
[1754179232811,0.4382,3398.1,3397.6,0.4915]
[1754179233012,0.4915,3398.0,3397.6,0.4915]
[1754179233227,0.1472,3397.7,3397.6,0.4915]
[1754179233416,1.0769,3397.7,3397.0,0.1472]
[1754179233612,0.1472,3397.5,3397.0,0.1472]
[1754179233815,0.1472,3397.3,3397.1,0.4915]
[1754179234019,0.1472,3397.3,3396.8,0.1472]
[1754179234020,0.4382,3397.2,3396.8,0.1472]
[1754179234327,0.4382,3397.2,3396.9,0.4915]
[1754179234517,0.1472,3397.3,3396.9,0.4915]
[1754179234718,0.4382,3397.1,3396.9,0.4915]
[1754179234918,0.4382,3397.0,3396.9,0.4915]
[1754179235130,0.9297,3397.0,3396.9,0.4915]
[1754179235448,0.4915,3397.0,3396.1,0.22154557]
[1754179235745,0.9297,3397.0,3396.6,0.685945]
[1754179236945,0.4382,3397.7,3396.7,0.49384033]
[1754179237112,0.1472,3397.5,3396.9,0.1472]
[1754179237305,0.1472,3397.5,3397.0,0.4644]
[1754179237529,0.4382,3398.0,3397.1,0.4644]
[1754179237839,0.1472,3397.6,3397.2,0.1472]
[1754179238254,0.1472,3397.9,3397.4,0.1472]
[1754179238745,0.1472,3397.9,3397.4,0.6116]
[1754179239123,0.5854,3397.9,3397.4,0.1472]
[1754179239312,0.4382,3397.8,3397.4,0.1472]
[1754179239513,0.6387,3397.9,3397.4,0.1472]
[1754179239713,0.1472,3397.9,3397.4,0.1472]
[1754179239964,0.1472,3397.9,3397.4,0.6116]
[1754179240117,0.1472,3397.9,3397.5,0.4644]
[1754179240759,0.1472,3398.2,3397.7,0.1472]
[1754179241115,0.4382,3398.1,3397.7,0.1472]
[1754179241430,0.9297,3398.0,3397.5,0.4644]
[1754179241634,1.0769,3397.9,3397.5,0.6116]
[1754179241968,0.9297,3397.8,3397.5,0.6116]
[1754179242417,0.4915,3397.8,3397.5,0.6116]
[1754179242622,0.4382,3397.7,3397.5,0.6116]
[1754179243122,0.4382,3397.6,3397.5,0.4644]
[1754179243354,0.4382,3397.6,3397.2,0.1472]
[1754179243355,0.5854,3397.6,3397.2,0.1472]
[1754179243537,0.5854,3397.6,3397.2,0.6116]
[1754179244053,0.4382,3397.5,3397.2,0.6116]
[1754179244760,0.4382,3397.4,3397.2,0.1472]
[1754179245561,0.4915,3397.5,3397.2,0.1472]
[1754179246061,0.9297,3397.5,3397.2,0.1472]
[1754179246226,0.4382,3397.4,3396.7,0.4644]
[1754179246421,0.4382,3397.4,3397.0,0.1472]
[1754179246866,0.4915,3397.5,3397.0,0.1472]
[1754179247159,4.594,3398.2,3397.1,0.49383687]
[1754179247359,0.1472,3397.9,3397.3,0.1472]
[1754179247724,0.1472,3398.1,3397.7,0.1472]
[1754179247925,0.001,3398.3,3396.7,0.99408014]
[1754179247926,0.001,3398.3,3397.9,0.1472]
[1754179248215,0.001,3398.3,3398.0,0.17662907]
[1754179248422,0.001,3398.3,3398.2,0.1472]
[1754179249287,0.001,3398.3,3397.7,0.4644]
[1754179249485,0.001,3398.3,3398.1,0.1472]
[1754179250226,0.001,3398.3,3398.1,0.6116]
[1754179250427,0.001,3398.3,3398.1,0.1472]
[1754179252314,0.4372,3398.3,3397.5,0.4672]
[1754179252501,0.8942,3398.3,3398.0,0.1472]
[1754179253337,0.4362,3398.2,3398.0,0.1472]
[1754179253640,0.8932,3398.2,3398.0,0.1472]
[1754179254333,0.457,3398.2,3397.6,0.55]
[1754179254541,0.4362,3398.1,3397.7,0.1472]
[1754179254712,0.8932,3398.0,3397.7,0.1472]
[1754179255045,0.457,3398.0,3397.6,0.1472]
[1754179255250,0.5834,3398.2,3397.6,0.1472]
[1754179255424,0.1472,3398.2,3397.6,0.1472]
[1754179256129,0.1472,3398.2,3397.7,0.4672]
[1754179256299,0.1472,3398.2,3397.8,0.4672]
[1754179256499,0.001,3398.3,3397.6,0.1472]
[1754179256500,0.001,3398.3,3397.9,0.4672]
[1754179256728,0.001,3398.3,3398.0,0.1472]
[1754179259350,0.001,3398.3,3398.1,0.6144]
[1754179259564,0.001,3398.3,3398.2,0.1472]
[1754179259868,0.001,3398.3,3398.2,0.6144]
[1754179262165,0.001,3398.3,3398.2,1.16392734]
[1754179262361,0.001,3398.3,3398.2,1.55990354]
[1754179262658,0.001,3398.3,3398.2,1.44260354]
[1754179262859,0.001,3398.3,3398.2,1.0172]
[1754179263421,0.001,3398.3,3398.2,1.1345]
[1754179264328,0.001,3398.3,3398.2,7.10666172]
[1754179264572,0.001,3398.6,3398.3,3.0]
[1754179264752,0.001,3398.6,3398.5,0.55]
[1754179264960,0.001,3398.6,3398.5,3.49247462]
[1754179265277,0.001,3398.6,3398.5,7.07697462]
[1754179265633,0.457,3402.3,3399.3,2.94177024]
[1754179265832,0.457,3402.3,3400.6,3.49065753]
[1754179266056,0.457,3402.3,3400.6,7.54428629]
[1754179266259,0.001,3403.3,3401.5,2.93979342]
[1754179266465,0.8932,3403.2,3401.7,3.55]
[1754179266666,0.001,3403.3,3401.9,3.55]
[1754179266987,0.001,3403.3,3402.2,0.55]
[1754179267188,0.001,3403.3,3402.4,0.55]
[1754179267742,0.001,3403.3,3402.2,0.4672]
[1754179267940,0.001,3403.3,3402.4,0.55]
[1754179268201,0.001,3403.3,3400.6,1.77123154]
[1754179268407,5.5512,3403.2,3400.6,0.68510862]
[1754179268536,1.4432,3403.1,3400.6,0.21790862]
[1754179268741,0.55,3402.9,3400.3,0.4672]
[1754179269106,0.8932,3402.8,3400.4,0.4672]
[1754179269377,1.4432,3402.7,3400.4,0.4672]
[1754179269577,0.8932,3402.6,3400.4,0.4672]
[1754179269744,0.55,3402.9,3400.4,0.4672]
[1754179269942,0.457,3402.5,3400.4,0.4672]
[1754179270145,0.457,3402.5,3400.6,0.55]
[1754179270383,0.001,3403.3,3400.5,0.1173]
[1754179270384,0.458,3403.3,3400.9,3.53350886]
[1754179270740,0.001,3403.3,3401.5,3.55]
[1754179270895,4.679,3404.8,3401.0,6.06264457]
[1754179270896,0.4362,3405.3,3403.5,3.55]
[1754179271200,0.458,3408.6,3404.0,0.55]
[1754179271401,0.373,3408.9,3404.3,0.55]
[1754179271580,0.4362,3406.6,3404.5,6.48726971]
[1754179271891,0.4362,3406.6,3404.7,0.55]
[1754179272049,0.457,3406.2,3405.5,0.1472]
[1754179272747,0.4362,3406.5,3405.5,1.1644]
[1754179273596,0.457,3406.7,3405.5,1.0172]
[1754179273754,0.4362,3406.9,3405.5,1.0172]
[1754179274097,0.8932,3407.2,3405.5,1.52988026]
[1754179274247,0.8932,3407.2,3405.5,1.16386426]
[1754179274467,0.457,3406.5,3405.5,0.55]
[1754179274651,0.457,3406.1,3405.5,0.21937769]
[1754179274885,0.457,3406.1,3405.0,3.55]
[1754179275099,0.4362,3405.9,3405.0,3.0]
[1754179275264,0.4362,3405.9,3402.6,2.93885099]
[1754179275265,0.457,3405.8,3404.5,3.61158213]
[1754179275463,0.4372,3405.6,3405.1,0.882632]
[1754179275717,0.457,3405.5,3405.1,0.882632]
[1754179276000,0.8932,3405.4,3405.1,0.882632]
[1754179276164,0.8932,3405.3,3405.1,0.882632]
[1754179276355,0.001,3405.6,3405.2,0.4672]
[1754179276556,0.001,3405.6,3405.3,0.7367288]
[1754179276783,0.001,3405.6,3405.3,0.8540288]
[1754179276988,0.001,3405.6,3405.2,0.55]
[1754179277189,0.001,3405.6,3405.2,1.0172]
[1754179277672,0.001,3405.6,3405.1,1.10642817]
[1754179277991,0.8932,3405.5,3405.1,1.10642817]
[1754179278205,0.457,3405.4,3405.1,1.10642817]
[1754179278638,0.4362,3405.5,3405.1,1.10642817]
[1754179278796,0.001,3405.6,3405.1,1.10642817]
[1754179279152,0.001,3405.6,3405.2,1.1345]
[1754179279445,7.066,3407.4,3405.3,0.2534588]
[1754179279606,0.457,3407.3,3405.4,4.0172]
[1754179279807,0.457,3407.3,3405.6,0.55]
[1754179280009,0.457,3408.0,3405.8,0.55]
[1754179280234,0.457,3408.0,3406.0,0.55]
[1754179280397,0.457,3408.0,3406.2,0.55]
[1754179280593,0.4362,3407.9,3406.2,0.55]
[1754179280832,0.457,3407.8,3406.2,0.55]
[1754179280997,0.4362,3407.7,3406.2,0.55]
[1754179281209,0.457,3407.6,3406.3,0.4672]
[1754179281407,0.457,3408.0,3406.4,0.55]
[1754179281652,0.457,3408.8,3406.6,0.55]
[1754179281813,0.001,3408.9,3407.5,0.55]
[1754179281814,0.458,3408.9,3407.5,0.55]
[1754179282047,0.001,3408.9,3407.8,0.55]
[1754179282370,0.001,3408.9,3407.7,3.0]
[1754179282371,0.001,3408.9,3408.0,0.55]
[1754179283676,0.001,3408.9,3408.8,0.1464]
[1754179283875,0.4106,3409.2,3408.8,0.1464]
[1754179284369,0.001,3409.3,3408.9,0.55]
[1754179284569,0.001,3409.3,3409.1,0.1464]
[1754179285547,0.4533,3409.2,3409.1,0.1464]
[1754179285784,0.4533,3409.2,3408.8,0.1464]
[1754179285963,0.9129,3409.1,3408.8,0.1464]
[1754179286164,0.9129,3409.0,3407.9,0.4596]
[1754179286384,1.0593,3408.9,3408.4,0.1464]
[1754179286538,0.1464,3408.9,3408.4,0.1464]
[1754179286735,0.4596,3408.8,3408.4,0.1464]
[1754179287053,0.4596,3408.7,3408.4,0.1464]
[1754179287369,0.4596,3408.6,3407.9,0.4596]
[1754179287536,0.1464,3408.3,3407.8,0.1464]
[1754179287731,0.4596,3408.2,3407.8,0.1464]
[1754179287936,0.1464,3408.3,3407.8,0.1464]
[1754179288274,0.001,3409.2,3407.9,0.4621]
[1754179288466,0.001,3409.2,3408.0,0.74464272]
[1754179288669,0.001,3409.2,3409.1,0.1464]
[1754179289239,0.001,3409.2,3409.1,1.37878419]
[1754179289438,0.001,3409.2,3409.1,1.1585]
[1754179290147,0.001,3409.2,3409.1,0.37196008]
[1754179290680,0.001,3409.2,3409.1,0.51836008]
[1754179291249,0.001,3409.2,3409.1,1.53046008]
[1754179291486,0.001,3409.2,3409.1,1.06836008]
[1754179292236,0.001,3409.2,3409.1,0.51836008]
[1754179293577,0.001,3409.2,3409.1,1.53046008]
[1754179293893,0.001,3409.2,3409.1,1.84880609]
[1754179294243,0.001,3409.2,3409.1,1.68350609]
[1754179294571,0.001,3409.2,3409.1,1.84880609]
[1754179295387,0.001,3409.2,3409.1,4.7821316]
[1754179295679,0.001,3409.2,3409.1,7.7821316]
[1754179295887,0.001,3409.2,3409.1,12.6691316]
[1754179296476,0.001,3409.2,3409.1,4.84880609]
[1754179296674,0.001,3409.2,3409.1,12.6881316]
[1754179297844,0.001,3410.9,3409.5,0.55]
[1754179298045,0.15338095,3415.3,3410.0,3.0]
[1754179298299,0.4596,3413.2,3410.2,3.55]
[1754179298595,0.4596,3413.1,3411.3,0.55]
[1754179298892,0.4596,3413.7,3411.5,6.48118568]
[1754179299102,0.4596,3413.7,3411.8,0.55]
[1754179299246,0.4596,3413.9,3412.7,0.55]
[1754179299570,0.4596,3414.3,3412.9,6.48000774]
[1754179299768,7.052,3416.0,3413.2,2.92972254]
[1754179299972,7.052,3416.0,3413.1,3.55]
[1754179299973,0.4533,3415.2,3413.4,2.92963028]
[1754179300143,7.052,3416.0,3413.6,0.55]
[1754179300347,0.4533,3414.8,3413.8,0.55]
[1754179300659,0.4533,3414.8,3413.8,0.817037]
[1754179300888,7.052,3416.0,3413.8,0.817037]
[1754179301091,0.4533,3415.0,3413.7,0.267037]
[1754179301419,0.4533,3415.4,3413.8,1.5839137]
[1754179301724,0.4533,3415.6,3414.2,0.55]
[1754179301925,0.9129,3415.6,3414.2,0.84632643]
[1754179302080,0.9129,3415.6,3414.3,0.4621]
[1754179302427,0.4596,3415.3,3414.4,0.55]
[1754179302594,0.4596,3415.3,3414.2,0.267037]
[1754179302913,0.4596,3415.8,3414.4,0.55]
[1754179303115,7.052,3417.2,3414.6,6.47855505]
[1754179303302,0.4533,3415.9,3414.8,0.55]
[1754179303489,7.052,3417.2,3414.1,0.4621]
[1754179303490,0.4596,3415.0,3414.3,0.55]
[1754179303689,0.4596,3415.4,3414.3,0.817037]
[1754179303892,7.052,3417.2,3414.5,0.55]
[1754179303893,0.004,3417.2,3414.5,0.55]
[1754179304085,0.4596,3415.8,3414.7,0.55]
[1754179304411,0.004,3417.2,3414.7,0.55]
[1754179304412,0.4596,3416.2,3414.8,1.2264]
[1754179304627,0.4596,3416.2,3414.8,1.493437]
[1754179304938,0.4596,3416.2,3414.8,1.71267836]
[1754179305141,0.4596,3415.9,3414.8,10.4664462]
[1754179305293,0.4596,3415.9,3414.8,4.71267836]
[1754179305495,0.61133922,3414.9,3414.8,4.03627836]
[1754179306136,0.15173922,3414.9,3414.8,4.03627836]
[1754179306430,0.15173922,3414.9,3414.8,4.71267836]
[1754179306743,0.15173922,3414.9,3414.8,5.6836462]
[1754179307035,0.15173922,3414.9,3414.8,10.4673462]
[1754179307233,0.15173922,3414.9,3414.8,4.03627836]
[1754179307408,0.15173922,3414.9,3414.8,9.03227836]
[1754179307605,0.004,3417.2,3414.8,9.03227836]
[1754179307606,0.4596,3416.4,3415.0,0.55]
[1754179307798,0.4596,3416.4,3416.3,0.1464]
[1754179308193,0.4596,3417.0,3416.4,0.55]
[1754179308638,0.4596,3417.0,3416.9,0.1464]
[1754179309206,0.004,3417.2,3416.0,0.2143]
[1754179309497,0.004,3417.2,3416.2,3.55]
[1754179309498,0.4596,3417.0,3416.2,3.55]
[1754179309729,0.004,3417.2,3416.4,0.55]
[1754179310032,0.004,3417.2,3416.6,0.55]
[1754179310332,0.004,3417.2,3416.6,3.55]
[1754179310333,0.001,3417.0,3416.6,3.55]
[1754179310491,0.4606,3417.0,3416.6,3.55]
[1754179310831,0.001,3417.0,3416.6,0.89729134]
[1754179311034,0.001,3417.0,3416.6,4.0729189]
[1754179311241,0.001,3417.0,3416.7,3.81352756]
[1754179311406,0.001,3417.0,3416.8,0.26336782]
[1754179311936,0.001,3417.0,3416.9,0.4621]
[1754179312168,0.001,3417.0,3416.7,0.81336782]
[1754179312319,0.9494,3416.9,3416.6,0.26336782]
[1754179312517,0.9494,3416.8,3416.5,0.879555]
[1754179312713,0.001,3417.0,3416.5,0.879555]
[1754179312714,0.9494,3416.7,3416.5,0.879555]
[1754179313055,0.9494,3416.6,3416.5,0.879555]
[1754179313760,0.9494,3416.6,3416.4,0.2155013]
[1754179313960,0.9494,3416.5,3416.4,0.879836]
[1754179314255,0.9494,3416.5,3415.2,4.997]
[1754179314470,0.9494,3416.4,3415.3,0.26362521]
[1754179314619,0.9494,3416.3,3415.4,0.55]
[1754179314822,0.9494,3416.3,3415.3,0.26360799]
[1754179315035,0.9494,3416.3,3415.4,0.55]
[1754179315559,0.9494,3416.2,3415.2,0.879916]
[1754179315718,0.4517,3416.2,3415.2,1.09790153]
[1754179315920,0.4977,3416.1,3415.2,1.09790153]
[1754179316116,0.4517,3416.0,3415.2,1.09790153]
[1754179316349,0.4977,3415.9,3415.2,1.09790153]
[1754179316535,0.4517,3415.8,3415.2,1.09790153]
[1754179316738,0.4517,3415.8,3415.2,0.21798553]
[1754179316920,0.4977,3415.7,3415.2,0.4977]
[1754179317136,0.4517,3415.6,3414.8,0.002]
[1754179317329,0.4517,3415.6,3414.9,0.551]
[1754179317537,0.4977,3415.5,3414.9,0.551]
[1754179317768,0.4517,3415.4,3414.8,0.002]
[1754179318319,0.4977,3415.3,3414.8,0.002]
[1754179319424,0.1464,3414.9,3414.8,0.002]
[1754179319854,0.6441,3414.9,3414.8,0.002]
[1754179320360,1.4994,3414.9,3414.8,0.002]
[1754179320668,1.64934,3414.9,3414.8,0.002]
[1754179320868,6.62834,3414.9,3414.8,0.002]
[1754179321069,0.9494,3414.9,3414.8,0.002]
[1754179321497,0.4977,3415.4,3414.8,0.002]
[1754179323007,0.4517,3415.3,3414.8,0.002]
[1754179323362,0.9494,3415.2,3414.8,0.002]
[1754179323921,0.1,3417.7,3414.8,0.002]
[1754179324202,0.15033423,3418.6,3414.8,0.002]
[1754179324203,0.4977,3415.1,3414.8,0.002]
[1754179324409,0.4977,3415.5,3414.8,0.002]
[1754179325774,0.4977,3416.5,3414.9,1.2312]
[1754179326105,0.4517,3416.4,3414.9,1.2312]
[1754179326313,0.4977,3416.3,3414.9,1.2312]
[1754179326464,0.4517,3416.2,3414.8,0.002]
[1754179326878,0.4977,3416.1,3414.9,0.55]
[1754179327089,0.4517,3416.0,3414.9,0.55]
[1754179327540,0.4517,3416.0,3414.8,0.002]
[1754179327835,0.4977,3415.9,3414.8,0.552]
[1754179328035,0.55,3415.8,3413.3,0.22410064]
[1754179328199,3.0,3415.6,3413.3,0.22410064]
[1754179328425,4.989,3417.0,3412.9,0.55]
[1754179328426,3.55,3415.4,3412.9,0.55]
[1754179328714,3.55,3415.2,3414.4,0.002]
[1754179328911,0.355,3415.1,3414.4,0.002]
[1754179329113,1.3044,3415.1,3414.4,0.002]
[1754179329488,0.9494,3415.0,3414.4,0.002]
[1754179330004,0.9494,3414.9,3414.4,0.002]
[1754179330332,0.1464,3414.5,3414.4,0.002]
[1754179330893,1.0958,3414.5,3414.4,0.002]
[1754179331422,1.6458,3414.5,3414.4,0.002]
[1754179331624,1.81038,3414.5,3414.4,0.002]
[1754179331988,0.55,3414.2,3412.7,0.55]
[1754179332192,3.55,3413.8,3411.2,0.9203]
[1754179332541,0.55,3413.6,3411.2,1.801307]
[1754179332831,0.9494,3413.5,3411.3,0.1801307]
[1754179333125,5.9564,3413.4,3411.4,0.94961347]
[1754179333329,0.9494,3413.3,3411.5,0.9203]
[1754179333492,0.9494,3413.2,3411.5,0.9203]
[1754179333691,0.4977,3413.1,3411.5,0.9203]
[1754179334025,0.4977,3413.1,3411.2,0.55]
[1754179334328,0.4977,3413.1,3411.6,0.9203]
[1754179334908,5.4557,3413.0,3411.0,0.881082]
[1754179335096,0.9494,3412.9,3411.0,0.881082]
[1754179335297,1.4994,3412.8,3410.5,0.9203]
[1754179335494,0.9494,3412.7,3410.8,0.881141]
[1754179335693,0.9494,3412.6,3410.8,0.881141]
[1754179336001,1.09934,3412.5,3410.5,0.9203]
[1754179336330,0.55,3412.9,3410.5,0.9203]
[1754179336331,0.9494,3412.4,3410.5,0.9203]
[1754179336529,0.55,3412.9,3410.5,0.9203]
[1754179336737,0.9494,3412.3,3410.1,0.9203]
[1754179336899,0.55,3412.1,3410.1,0.4669]
[1754179337233,0.55,3411.9,3410.1,0.4669]
[1754179337398,0.55,3411.9,3410.1,0.9203]
[1754179337725,0.9494,3411.8,3410.1,0.9203]
[1754179338135,0.9494,3411.7,3410.1,0.9203]
[1754179338298,0.9494,3411.6,3410.0,0.2192681]
[1754179338626,0.9494,3411.5,3409.7,0.9203]
[1754179338830,0.4977,3411.4,3409.8,1.1842478]
[1754179339140,0.4977,3411.4,3409.9,0.9203]
[1754179339523,0.4517,3411.3,3409.9,0.9203]
[1754179339829,0.4977,3411.2,3409.9,0.9203]
[1754179340431,0.4977,3411.7,3410.1,0.55]
[1754179340637,0.4977,3411.7,3410.2,1.07026255]
[1754179340832,4.986,3411.6,3410.3,0.9203]
[1754179341038,4.986,3411.6,3410.2,0.14996255]
[1754179341328,0.4517,3411.9,3410.4,0.9203]
[1754179341508,4.987,3411.6,3410.5,0.9203]
[1754179342105,5.1334,3411.6,3411.1,0.1464]
[1754179342733,0.4672,3411.5,3411.1,0.1464]
[1754179342941,0.939,3411.4,3409.6,1.352978]
[1754179343125,0.1464,3410.4,3409.9,0.1464]
[1754179343323,0.939,3410.3,3409.9,0.1464]
[1754179344435,0.4672,3410.3,3409.9,0.1464]
[1754179346239,0.4672,3410.2,3409.3,0.881519]
[1754179346558,0.4672,3410.2,3409.8,0.1464]
[1754179346703,0.4672,3410.2,3409.3,0.1799519]
[1754179346900,0.6136,3410.2,3409.7,0.1464]
[1754179347140,0.4672,3410.1,3409.7,0.1464]
[1754179347504,0.4672,3410.0,3409.7,0.1464]
[1754179347842,0.1464,3409.8,3409.3,0.1464]
[1754179348346,0.6136,3409.8,3409.3,0.1464]
[1754179348716,0.1464,3409.8,3409.3,0.1464]
[1754179348915,0.4672,3409.7,3409.3,0.1464]
[1754179349105,0.4672,3409.6,3409.1,0.21965309]
[1754179349306,0.939,3409.6,3409.2,0.1464]
[1754179349520,0.939,3409.5,3409.2,0.1464]
[1754179349714,0.4672,3409.4,3409.2,0.1464]
[1754179350145,0.1464,3410.2,3409.3,1.0644]
[1754179350352,0.1464,3410.4,3409.5,0.55]
[1754179350547,0.4718,3411.5,3409.7,0.55]
[1754179350548,0.4672,3411.5,3409.7,0.55]
[1754179350755,0.1464,3411.2,3410.3,0.1464]
[1754179351040,0.1464,3411.0,3410.5,0.1464]
[1754179351240,0.939,3410.9,3409.8,0.4462]
[1754179351440,0.1464,3410.6,3410.1,0.1464]
[1754179352007,0.939,3410.5,3408.5,0.881711]
[1754179352210,0.939,3410.5,3405.8,0.4718]
[1754179352211,2.93289437,3409.7,3406.7,0.1464]
[1754179352435,0.55,3408.4,3406.9,0.15333022]
[1754179352653,3.55,3408.2,3406.9,0.15333022]
[1754179352826,0.55,3408.0,3405.8,0.4462]
[1754179353023,0.55,3407.8,3405.8,0.4462]
[1754179353352,6.26460107,3407.7,3405.8,0.4462]
[1754179353555,0.55,3407.5,3405.8,0.4462]
[1754179353755,5.7632,3407.6,3405.9,0.4718]
[1754179354269,5.32360107,3407.5,3406.0,0.4462]
[1754179354445,5.291,3407.6,3406.1,0.4718]
[1754179354747,5.291,3407.6,3406.2,0.4462]
[1754179355246,5.291,3407.6,3406.3,0.4718]
[1754179355845,5.291,3407.6,3406.4,0.4462]
[1754179356211,0.4672,3407.5,3406.1,0.78710502]
[1754179356420,0.55,3408.5,3406.1,0.78710502]
[1754179356421,3.665,3409.7,3406.2,1.0885105]
[1754179356631,5.282,3408.4,3406.5,0.55]
[1754179356838,5.282,3408.4,3406.7,0.55]
[1754179357037,5.282,3408.4,3406.8,1.70510502]
[1754179357255,7.051,3409.5,3406.9,4.468]
[1754179357427,5.28,3408.9,3407.1,0.55]
[1754179357752,5.28,3408.9,3407.0,2.56290216]
[1754179357753,5.28,3408.9,3407.3,0.55]
[1754179358052,5.28,3408.9,3407.4,1.70510502]
[1754179358257,5.28,3408.9,3407.5,0.4462]
[1754179358569,0.939,3408.8,3407.4,0.78710502]
[1754179358851,5.28,3408.9,3406.9,0.918]
[1754179358852,1.489,3408.7,3406.9,0.4462]
[1754179359055,1.489,3408.7,3406.4,0.4462]
[1754179359056,0.55,3408.5,3406.4,0.4462]
[1754179359260,6.213,3408.4,3406.5,0.55]
[1754179359413,0.939,3408.4,3406.6,0.4462]
[1754179359614,3.103,3411.0,3406.6,0.4462]
[1754179359615,5.273,3408.8,3406.9,3.55]
[1754179359919,5.273,3408.8,3407.1,3.55]
[1754179360120,5.273,3408.8,3407.3,0.55]
[1754179360353,0.4672,3409.5,3407.4,0.918]
[1754179360556,0.4672,3409.5,3407.5,0.918]
[1754179360557,5.273,3409.4,3407.5,0.918]